Cogmind - Beta 17.1 @@@ ROGUE MODE // 2026.09.22 @ 09:33:58 Player: robotdolboeb Result: Destroyed by S-27 Virus with Autogun Performance ------------- Evolutions (5) 2500 Regions Visited (7) 1400 Robots Destroyed (129) 645 Value Destroyed (5182) 5182 Prototype IDs (10) 200 Alien Tech Used (0) 0 Bonus (0) 0 TOTAL SCORE: 9927 Bonus ------- None Cogmind --------- Core Integrity 0/1000 Matter 223/300 Energy 25/100 System Corruption 15% Temperature Cool (0) Movement Treading (165) Location -5/Extension Parts ------- > --- POWER (2) -------- (None) > --- PROPULSION (4) --- Improved Medium Treads Armored Medium Treads > --- UTILITY (7) ------ High-capacity Storage Unit Improved Target Analyzer System Guard > --- WEAPON (4) ------- KE Penetrator > --- INVENTORY (20) --- Improved Cooling System Coolant Injector Advanced Energy Well Advanced ECM Suite Shock Absorption System Point Defense System Improved Component Analysis Suite Long-range Proton Cannon Disruptor Cannon Peak State ------------ > --- POWER ------------ Light Angular Momentum Engine Enhanced Fission Core > --- PROPULSION ------- Armored Huge Wheel Armored Huge Wheel > --- UTILITY ---------- Advanced Cooling System Advanced Cooling System High-capacity Storage Unit Advanced Sensor Array Improved Target Analyzer Improved Weapon Cycler System Guard > --- WEAPON ----------- Wave Gun Variable Charge Gun Heavy Plasma Cannon Advanced Assault Cannon > --- INVENTORY -------- Armored Medium Treads Armored Huge Wheel Coolant Injector Advanced Energy Well Advanced ECM Suite Shock Absorption System Point Defense System Improved Component Analysis Suite Long-range Proton Cannon Long-range Proton Cannon Disruptor Cannon Gauss Rifle Improved Heavy Machine Gun KE Penetrator KE Penetrator Advanced Assault Cannon [Rating: 92] Favorites ----------- Power Light Angular Momentum Engine Engine Light Angular Momentum Engine Power Core Enhanced Fission Core Reactor Antimatter Reactor Propulsion Light Treads Treads Light Treads Leg Advanced VSS Leg Wheel Armored Huge Wheel Utility Improved Cooling System Device Improved Cooling System Storage High-capacity Storage Unit Processor Improved Targeting Computer Hackware Hacking Suite Protection Medium Armor Plating Weapon Precision Beam Rifle Energy Gun Precision Beam Rifle Energy Cannon Advanced Beam Cannon Ballistic Gun Improved Heavy Machine Gun Ballistic Cannon Light Cannon Build | -11 -10 -9 -8 -7 -6 -5 -5 ------- Run | Yrd Mat Mat Mat Fac Fac Fac Ext Slots Evolved 10 | . . 2 2 2 2 2 . Power 1 | . . . . 1 . . . Propulsion 2 | . . . 1 . . 1 . Utility 5 | . . 1 1 1 1 1 . Weapon 2 | . . 1 . . 1 . . Parts Attached 107 | 6 7 11 9 8 10 31 25 Power 15 | 1 . 1 1 1 2 6 3 Engine 8 | 1 . 1 1 1 1 1 2 Core 6 | . . . . . 1 4 1 Reactor 1 | . . . . . . 1 . Propulsion 16 | 2 2 . 3 2 . 5 2 Treads 10 | . 2 . 3 2 . 2 1 Leg 3 | 2 . . . . . 1 . Wheel 3 | . . . . . . 2 1 Hover . | . . . . . . . . Flight . | . . . . . . . . Utility 44 | 1 4 7 2 3 4 11 12 Device 25 | . . 3 2 2 3 7 8 Storage 5 | 1 3 1 . . . . . Processor 4 | . . . . 1 . 1 2 Hackware 1 | . . . . . . . 1 Protection 9 | . 1 3 . . 1 3 1 Artifact . | . . . . . . . . Weapon 32 | 2 1 3 3 2 4 9 8 Energy Gun 10 | 2 . 1 1 . 1 3 2 Energy Cannon 7 | . . . 1 . 1 3 2 Ballistic Gun 10 | . . . 1 2 2 2 3 Ballistic Cannon 5 | . 1 2 . . . 1 1 Launcher . | . . . . . . . . Special Weapon . | . . . . . . . . Impact Weapon . | . . . . . . . . Slashing Weapon . | . . . . . . . . Piercing Weapon . | . . . . . . . . Special Melee Weapon . | . . . . . . . . Unidentified Prototypes 8 | . . 1 2 1 1 3 . Parts Lost 45 | . . . . . . 14 31 Power 5 | . . . . . . . 5 Propulsion 7 | . . . . . . 5 2 Utility 18 | . . . . . . 5 13 Weapon 15 | . . . . . . 4 11 Highest Loss Streak 16 | . . . . . . 9 16 To Critical Strikes 1 | . . . . . . . 1 Average Backups 16 | 3 9 10 15 18 19 18 15 Power 1 | . 1 1 2 2 2 2 . Propulsion 1 | 1 . . 2 2 2 . 1 Utility 7 | . 3 4 5 5 7 9 6 Weapon 5 | 1 4 2 4 8 7 5 6 Tool/Special . | . . . . . . . . Unused Backups 34 | . . 5 2 4 6 11 6 Power 3 | . . 1 . . . 2 . Propulsion 2 | . . . . 2 . . . Utility 14 | . . 1 1 1 1 5 5 Weapon 15 | . . 3 1 1 5 4 1 Tool/Special . | . . . . . . . . Average Slot Usage (%) 96 | . 95 99 99 99 99 96 84 Engine 8 | . 14 11 9 14 12 3 2 Core 2 | . . . . . . 6 4 Treads 18 | . 26 22 27 23 20 18 . Wheel 1 | . . . . . . . 10 Device 19 | . . 10 17 22 20 25 18 Storage 7 | . 14 11 9 7 6 5 5 Processor 5 | . . . . 3 6 6 11 Protection 4 | . 9 11 9 3 5 . 1 Energy Gun 8 | . 14 12 12 7 6 6 6 Energy Cannon 6 | . . . 1 7 11 9 5 Ballistic Gun 4 | . . . 6 6 5 5 3 Ballistic Cannon 4 | . 13 20 7 . . . 4 Peak Build Rating 92 | 6 9 19 34 46 65 90 92 Average Rating 54 | 3 8 17 27 41 57 79 83 On Entrance 32 | . 6 9 18 34 46 63 86 Avg Prop Armor Cover (%) 2 | . . . . . . 2 . Naked Turns . | . . . . . . . . Heaviest Build 105 | 14 27 66 68 80 88 103 105 Greatest Support 87 | 20 40 40 63 65 64 87 56 Greatest Overweight (x) 3 | 1 . 1 1 1 1 3 3 Average Overweight (x) . | . . . 1 1 1 . 1 Largest Inventory Capacity 20 | 8 10 20 20 20 20 20 20 Average Capacity 18 | 7 9 14 20 20 20 20 20 Most Carried 20 | 8 10 12 20 20 20 20 20 Average Carried 16 | 4 9 10 16 18 19 19 16 Final Capacity 20 | 8 10 20 20 20 20 20 20 Final Carried 20 | 4 10 12 20 20 20 20 9 Class Distribution -------------------- 32% | Tank 32% | Skirmisher 25% | Gunner 6% | Mutant 3% | Scavenger-Gunner Dominant Class ---------------- Mutant | -10/Materials Tank | -9/Materials Tank | -8/Materials Gunner | -7/Factory Skirmisher | -6/Factory Skirmisher | -5/Factory Gunner | -5/Extension Resources | -11 -10 -9 -8 -7 -6 -5 -5 ----------- Run | Yrd Mat Mat Mat Fac Fac Fac Ext Matter Collected 2954 | 222 213 411 192 151 42 686 1037 Remotely . | . . . . . . . . Salvage Created 5551 | . 229 611 376 313 269 2144 1609 Parts 259 | . 27 37 21 19 16 82 57 Haulers Intercepted 3 | . . 1 1 1 . . . Recyclers Shooed 3 | . . . . . . 3 . Parts Field Recycled . | . . . . . . . . Retrieved Matter . | . . . . . . . . Parts Self-Destructed . | . . . . . . . . Prevented . | . . . . . . . . Parts Restored . | . . . . . . . . Kills | -11 -10 -9 -8 -7 -6 -5 -5 ------- Run | Yrd Mat Mat Mat Fac Fac Fac Ext Combat Hostiles Destroyed 99 | . 9 19 7 5 3 32 24 Guns 49 | . 4 8 5 3 1 16 12 Cannons 41 | . 4 11 2 2 . 14 8 AOE 2 | . 1 . . . 1 . . Classes Destroyed 16 | . 4 3 . 1 3 2 3 Worker 6 | . 1 . . . . 2 3 Builder 4 | . . . . . . 2 2 Tunneler 1 | . . . . . 1 . . Hauler 3 | . . 1 1 1 . . . Recycler 5 | . . 1 . . . 3 1 Operator 3 | . . . . . 2 . 1 Watcher 8 | . 3 . . 1 1 3 . Swarmer 18 | . 6 7 . . . 4 1 Grunt 33 | . 3 10 5 2 . 6 7 Brawler 1 | . . . . . . . 1 Duelist 3 | . . . . . . . 3 Sentry 12 | . . 2 2 . . 2 6 Specialist 2 | . . . . . . 2 . Hunter 12 | . . . . . 2 6 4 Programmer 16 | . . . . 3 1 12 . Behemoth 2 | . . . . . . . 2 Best Kill Streak 8 | . 4 7 3 3 3 7 8 Combat Bots Only 8 | . 3 6 3 2 1 7 8 Max Kills in Single Turn 2 | . 1 2 1 2 2 2 2 Gunslinging . | . . . . . . . . Exploded 1 | . 1 . . . 1 . . Melee . | . . . . . . . . Uniques/NPCs Destroyed . | . . . . . . . . Combat | -11 -10 -9 -8 -7 -6 -5 -5 -------- Run | Yrd Mat Mat Mat Fac Fac Fac Ext Hostile Shots Fired 854 | . 38 62 36 15 16 371 316 Missed 263 | . 11 15 13 5 4 107 108 Hits 591 | . 27 47 23 10 12 264 208 Melee 1 | . . . . . . . 1 Projectile 590 | . 27 47 23 10 12 264 207 AOE 2 | . . . . . 1 1 . Critical Strikes 17 | . . . 1 1 . 11 4 Actively Blocked 1 | . . . . . . 1 . Damage Taken 9711 | . 369 400 363 136 354 3653 4436 Core 1183 | . 86 22 19 14 33 289 720 Absorbed by Shields 607 | . . 80 . 16 . 345 166 Redirected to Shielding 137 | . . 9 . . . 123 5 Ignored by Resistances 142 | . . . . . 38 104 . Core Remaining (%) 91 | 100 65 94 96 98 96 . . Volleys Fired 278 | . 27 28 18 13 16 87 89 Largest 4 | . 2 3 3 3 4 4 4 Hottest 436 | . 70 131 154 154 239 318 436 Shots Fired 928 | . 54 84 54 39 61 328 308 Gun 483 | . 27 34 34 26 32 180 150 Cannon 445 | . 27 50 20 13 29 148 158 Launcher . | . . . . . . . . Special . | . . . . . . . . Kinetic 335 | . 27 50 28 13 13 77 127 Thermal 535 | . . 28 26 26 48 235 172 Explosive . | . . . . . . . . Electromagnetic 58 | . 27 6 . . . 16 9 Robot Hit Streak 19 | . 6 10 10 7 8 19 10 Robot Miss Streak 10 | . 4 2 2 3 3 10 4 Penetration Max 1 | . . . . . . 1 1 Secondary Targets 2 | . . . 1 . . . 1 Max Gunslinging Chain 1 | . . . 1 . . . 1 Shots Hit Robots 506 | . 25 53 39 24 27 185 153 Core Hits 238 | . 14 23 16 14 11 100 60 Critical Kills 5 | . . . . . 1 1 3 Critical Parts Destroyed . | . . . . . . . . Critical Strikes 20 | . 1 3 1 1 1 1 12 Burn 6 | . . 2 1 1 . . 2 Meltdown 3 | . . . . . 1 . 2 Destroy 2 | . . . . . . 1 1 Blast 8 | . 1 1 . . . . 6 Corrupt 1 | . . . . . . . 1 Melee Attacks . | . . . . . . . . Impact . | . . . . . . . . Slashing . | . . . . . . . . Piercing . | . . . . . . . . Sneak Attacks . | . . . . . . . . Combat Hostiles . | . . . . . . . . Follow-up Attacks . | . . . . . . . . Damage Inflicted 14320 | . 559 1025 721 547 687 5946 4835 Guns 7567 | . 184 403 463 293 342 3621 2261 Cannons 6446 | . 231 622 258 245 231 2318 2541 Explosions 254 | . 140 . . . 114 . . Melee . | . . . . . . . . Ramming 53 | . 4 . . 9 . 7 33 Kinetic 4047 | . 231 622 324 158 69 902 1741 Thermal 9520 | . 140 392 397 380 504 4865 2842 Explosive 114 | . . . . . 114 . . Electromagnetic 586 | . 184 11 . . . 172 219 Impact . | . . . . . . . . Slashing . | . . . . . . . . Piercing . | . . . . . . . . Highest Corruption 26 | . . . . 4 . 14 26 Average Corruption 9 | . . . . 2 . 6 16 Corruption Purged 5 | . . . . . . . 5 Corruption Blocked . | . . . . . . . . Effects 123 | . . . . 6 . 58 59 Message Errors 15 | . . . . 1 . 5 9 Matter Fused 36 | . . . . 3 . 17 16 Heat Flow Errors 12 | . . . . . . 6 6 Energy Discharges 12 | . . . . 1 . 7 4 Parts Rejected 3 | . . . . . . 1 2 Parts Fused 1 | . . . . . . 1 . Data Loss (minor) 12 | . . . . 1 . 6 5 Data Loss (major) 4 | . . . . . . 3 1 Misfires 5 | . . . . . . 3 2 Alerts 6 | . . . . . . 5 1 Misdirections 3 | . . . . . . . 3 Weapon Failures 14 | . . . . . . 4 10 Overload Shots 17 | . . . . . . . 17 Effects 1 | . . . . . . . 1 Energy Bleed 1 | . . . . . . . 1 Overflow Damage 187 | . 72 . . . 28 5 82 Projectiles 93 | . . . . . 6 5 82 Explosions 94 | . 72 . . . 22 . . Melee . | . . . . . . . . Knockbacks 21 | . 5 7 . . . . 9 Impact . | . . . . . . . . Kinetic 19 | . 4 7 . . . . 8 Secondary 2 | . 1 . . . . . 1 Self-Inflicted Damage 253 | . 124 . . . 110 3 16 Shots 5 | . 3 . . . 2 . . Rammed 5 | . 1 . . 1 . 1 2 Targets Rammed 5 | . 1 . . 1 . 1 2 Kicked . | . . . . . . . . Crushed . | . . . . . . . . Highest Temperature 451 | . 144 318 102 99 233 207 451 Average Temperature 81 | . 48 104 27 29 88 43 130 Received Heat Transfer 1106 | . 48 155 171 26 12 360 334 Effects 5 | . . . . . . . 5 Interference 2 | . . . . . . . 2 Damage (major) 3 | . . . . . . . 3 Siege Activations . | . . . . . . . . Martial Activations . | . . . . . . . . Shielding Activations . | . . . . . . . . Robots Disrupted . | . . . . . . . . Combat Hostiles . | . . . . . . . . Robots Corrupted 1 | . . . . . . . 1 Combat Hostiles 1 | . . . . . . . 1 Parts Fried 1 | . . . . . . . 1 Impact Corruptions . | . . . . . . . . Robots Melted 6 | . . . . . 1 2 3 Combat Hostiles 6 | . . . . . 1 2 3 Parts Melted 45 | . . 1 1 3 9 22 9 Heat Transferred 14824 | . 100 999 888 703 925 6920 4289 Parts Sabotaged . | . . . . . . . . Parts Stolen . | . . . . . . . . Parts Stripped . | . . . . . . . . Power Chain Reactions 2 | . 2 . . . . . . Alert | -11 -10 -9 -8 -7 -6 -5 -5 ------- Run | Yrd Mat Mat Mat Fac Fac Fac Ext Maximum Alert Level 1 | . . 1 . . . 1 1 Low Security (%) 81 | 100 100 37 100 100 100 80 59 Level 1 18 | . . 62 . . . 19 40 Level 2 . | . . . . . . . . Level 3 . | . . . . . . . . Level 4 . | . . . . . . . . Level 5 . | . . . . . . . . High Security . | . . . . . . . . Max Security . | . . . . . . . . Peak Influence 341 | . 191 309 71 60 86 341 259 Initial 164 | . . 76 64 2 14 . 164 Average 91 | . 66 210 24 8 10 111 173 Influence Increases 3055 | . 325 493 204 145 178 1003 707 Destroy 0b10 Robot/C 1980 | . 180 380 140 100 60 640 480 Destroy 0b10 Robot/NC 150 | . 20 10 5 10 20 50 35 Destroy Leader 402 | . 36 72 42 34 22 136 60 Successful Hack 39 | . 5 . . . 16 12 6 Disable Machine 90 | . 30 . . . 30 30 . Destroy Structure 259 | . 39 1 2 1 30 90 96 Partial Spotted 30 | . . . . . . 30 . Lose Combat Pursuer 105 | . 15 30 15 . . 15 30 Influence Decreases 2972 | . 142 523 350 123 207 666 961 Entered New Map 389 | . . 107 89 5 15 . 173 Time Decay 1985 | . 142 416 261 118 192 398 458 Lost Part 443 | . . . . . . 133 310 Lost Ally 20 | . . . . . . . 20 Purge Threat 135 | . . . . . . 135 . Squads Dispatched 21 | . 1 3 1 2 3 7 4 Investigation 4 | . . 1 . . . 1 2 Extermination 8 | . . . . 2 2 4 . Reinforcement 9 | . 1 2 1 . 1 2 2 Assault . | . . . . . . . . Garrison . | . . . . . . . . Intercept . | . . . . . . . . Searches Triggered . | . . . . . . . . Construction Impeded 2 | . . . . . . . 2 Haulers Reinforced . | . . . . . . . . Active Scanning Responses . | . . . . . . . . Cargo Convoy Interrupts 1 | . . . . . . 1 . Stealth | -11 -10 -9 -8 -7 -6 -5 -5 --------- Run | Yrd Mat Mat Mat Fac Fac Fac Ext Distress Signals 6 | . . 1 . . 1 1 3 Communications Jammed . | . . . . . . . . Distress Signals . | . . . . . . . . Times Spotted 151 | . 14 23 13 7 6 52 36 Peak Tracking Total 10 | . 3 7 5 3 2 10 6 Tactical Retreats 7 | . 1 2 1 . . 1 2 Traps | -11 -10 -9 -8 -7 -6 -5 -5 ------- Run | Yrd Mat Mat Mat Fac Fac Fac Ext Traps Triggered 2 | . . 1 . 1 . . . Indirectly . | . . . . . . . . Trap Hack Attempts . | . . . . . . . . Triggered . | . . . . . . . . Disarmed . | . . . . . . . . Reprogrammed . | . . . . . . . . Reused . | . . . . . . . . Traps Extracted . | . . . . . . . . Installed . | . . . . . . . . Triggered . | . . . . . . . . Machines | -11 -10 -9 -8 -7 -6 -5 -5 ---------- Run | Yrd Mat Mat Mat Fac Fac Fac Ext Machines Disabled 7 | . 2 . . . 2 2 1 Max in Single Turn 2 | . 2 . . . 2 1 1 Machines Repaired . | . . . . . . . . Machines Dismantled . | . . . . . . . . Machines Sabotaged . | . . . . . . . . Overloaded Fab Kills . | . . . . . . . . Hacking | -11 -10 -9 -8 -7 -6 -5 -5 --------- Run | Yrd Mat Mat Mat Fac Fac Fac Ext Machines Accessed 12 | . 1 2 1 . 1 4 3 Terminals 11 | . 1 2 1 . 1 3 3 Fabricators . | . . . . . . . . Repair Stations . | . . . . . . . . Recycling Units . | . . . . . . . . Scanalyzers 1 | . . . . . . 1 . Garrison Access . | . . . . . . . . Total Hacks 24 | . 2 4 1 . 2 7 8 Successful 8 | . 1 2 . . 1 3 1 Failed 16 | . 1 2 1 . 1 4 7 Catastrophic 2 | . . . . . . . 2 Database Lockouts . | . . . . . . . . Manual . | . . . . . . . . Terminals 22 | . 2 4 1 . 2 5 8 Fabricators . | . . . . . . . . Repair Stations . | . . . . . . . . Recycling Units . | . . . . . . . . Scanalyzers 2 | . . . . . . 2 . Garrison Access . | . . . . . . . . Terminal Hacks 7 | . 1 2 . . 1 2 1 Part Schematic 1 | . . . . . 1 . . Robot Analysis 1 | . 1 . . . . . . Prototype ID Bank 1 | . . 1 . . . . . Open Door 1 | . . . . . . . 1 Alert Level 1 | . . . . . . 1 . Unreport Threat 1 | . . . . . . 1 . Zone Layout 1 | . . 1 . . . . . Fabricator Hacks . | . . . . . . . . Repair Station Hacks . | . . . . . . . . Recycling Unit Hacks . | . . . . . . . . Scanalyzer 1 | . . . . . . 1 . Retrieve Study 1 | . . . . . . 1 . Garrison Access Hacks . | . . . . . . . . Unauthorized Hacks . | . . . . . . . . Terminals . | . . . . . . . . Fabricators . | . . . . . . . . Repair Stations . | . . . . . . . . Recycling Units . | . . . . . . . . Scanalyzers . | . . . . . . . . Garrison Access . | . . . . . . . . Data Cores Recovered 2 | . . . . . 1 . 1 Used . | . . . . . . . . Hacking Detections 10 | . 1 1 1 . 1 3 3 Full Trace Events 3 | . . . . . . 1 2 Feedback Events . | . . . . . . . . Feedback Blocked . | . . . . . . . . Robot Schematics Acquired . | . . . . . . . . Robots Built . | . . . . . . . . Authchips . | . . . . . . . . Time . | . . . . . . . . Total Robot Build Rating . | . . . . . . . . Part Schematics Acquired 1 | . . . . . 1 . . Parts Built . | . . . . . . . . Authchips . | . . . . . . . . Time . | . . . . . . . . Total Part Build Rating . | . . . . . . . . Part Studies Acquired 1 | . . . . . . 1 . Parts Repaired . | . . . . . . . . Time . | . . . . . . . . Parts Recycled . | . . . . . . . . Recycled Matter . | . . . . . . . . Retrieved Matter . | . . . . . . . . Retrieved Components . | . . . . . . . . Parts Scanalyzed . | . . . . . . . . Part Schematics Acquired . | . . . . . . . . Parts Damaged . | . . . . . . . . Bothacking | -11 -10 -9 -8 -7 -6 -5 -5 ------------ Run | Yrd Mat Mat Mat Fac Fac Fac Ext Used RIF Installer . | . . . . . . . . Robots Hacked . | . . . . . . . . Non-combat . | . . . . . . . . Combat . | . . . . . . . . Robot Hacks Applied . | . . . . . . . . Relay Couplers Released . | . . . . . . . . Fabnet Peak Effective % . | . . . . . . . . Robots Rewired . | . . . . . . . . Allies Hacked . | . . . . . . . . Hacks Repelled . | . . . . . . . . Allies | -11 -10 -9 -8 -7 -6 -5 -5 -------- Run | Yrd Mat Mat Mat Fac Fac Fac Ext Total Allies 1 | . . . . . . . 1 Largest Group 1 | . . . . . . . 1 Highest-Rated Group 39 | . . . . . . . 39 Highest-Rated Ally 39 | . . . . . . . 39 Total Orders . | . . . . . . . . Ally Attacks 2 | . . . . . . . 2 Total Damage . | . . . . . . . . Kills . | . . . . . . . . Allies Corrupted . | . . . . . . . . Allies Melted . | . . . . . . . . Intel | -11 -10 -9 -8 -7 -6 -5 -5 ------- Run | Yrd Mat Mat Mat Fac Fac Fac Ext Active Infowar (turns) 6389 | . . . 721 992 1360 2551 765 Sensors 6291 | . . . 721 992 1359 2551 668 Traps 2709 | . . . . . 931 1778 . ECM 195 | . . . . . . . 195 Robot Analysis Total 1 | . 1 . . . . . . Derelict Logs Recovered . | . . . . . . . . Drone Launches . | . . . . . . . . Drone Recoveries . | . . . . . . . . Exploration | -11 -10 -9 -8 -7 -6 -5 -5 ------------- Run | Yrd Mat Mat Mat Fac Fac Fac Ext Turns Passed 8447 | 58 514 1009 806 992 1360 2564 1144 Spaces Moved 3703 | 40 258 462 276 382 545 1081 659 Core 16 | 16 . . . . . . . Treads 2896 | . 248 462 276 382 545 977 6 Legs 34 | 24 10 . . . . . . Wheels 757 | . . . . . . 104 653 Hover . | . . . . . . . . Flight . | . . . . . . . . Fastest Speed 50 | 50 120 160 240 233 233 115 115 Average Speed 189 | 108 158 189 241 240 233 192 116 Slowest Speed 410 | 120 160 240 243 243 233 410 330 Overloaded Moves . | . . . . . . . . Propulsion Burnouts . | . . . . . . . . Robots Hopped . | . . . . . . . . Potential Cave-ins 4 | . . . . . . 2 2 Cave-ins Triggered 2 | . . . . . . . 2 Exploration Rate (%) 28 | 2 51 40 18 10 12 28 65 Regions Visited 7 Branch Regions 1 Pre-discovered Areas . | . . . . . . . . Known Exits Taken . | . . . . . . . . Unknown Exits Taken 7 | 1 1 1 1 1 1 1 . Scrap Searched . | . . . . . . . . Spaces Dug 43 | . . . . . 3 12 28 Terrain Destroyed 180 | . 52 . . . 28 42 58 Melee . | . . . . . . . . Projectile 109 | . . . . . 9 42 58 AOE 71 | . 52 . . . 19 . . Terrain Rammed . | . . . . . . . . Walls Destroyed . | . . . . . . . . Machines Disabled . | . . . . . . . . Actions | -11 -10 -9 -8 -7 -6 -5 -5 --------- Run | Yrd Mat Mat Mat Fac Fac Fac Ext Total 4537 | 54 309 537 381 431 607 1357 861 Wait 225 | . 2 6 54 8 10 90 55 Move 3695 | 39 257 461 275 381 544 1080 658 Hop . | . . . . . . . . Pick Up 121 | 9 10 15 16 9 11 34 17 Fast Attach 16 | 1 1 2 3 2 2 5 . Attach 65 | 5 1 3 4 3 4 19 26 Detach 6 | . . . . 1 3 2 . Swap 42 | . 5 6 2 3 4 11 11 Drop 82 | . 5 16 9 10 13 28 1 Fire 278 | . 27 28 18 13 16 87 89 Melee . | . . . . . . . . Ram 3 | . . . . . . 1 2 Kick . | . . . . . . . . Crush 2 | . 1 . . 1 . . . Escape Stasis 1 | . . . . . . . 1 Rewire 1 | . . . . . . . 1 Trap . | . . . . . . . . Miscellaneous . | . . . . . . . . Route ------- -11/Scrapyard -10/Materials (discovered 2 exits: *Mat / [*Min]) -9/Materials (discovered 2 exits: *Mat / [Min]) -8/Materials (discovered 2 exits: *Fac / [*Sto]) -7/Factory -6/Factory (discovered 2 exits: *Fac / [*Low]) -5/Factory (discovered 2 exits: [*Upp] / *Ext) -5/Extension History --------- Turn | Location | Event 8 | -11/Scrapyard | Discovered new exit (range 15) 59 | -11/Scrapyard | Entered Materials 310 | -10/Materials | Discovered new exit (range 7) 311 | -10/Materials | Build established: Mutant 519 | -10/Materials | Discovered new exit (range 12) 573 | -10/Materials | Entered another Materials area 573 | -9/Materials | Evolved 2 slots: Utility x1, Weapon x1 875 | -9/Materials | Build established: Tank 1012 | -9/Materials | Discovered new exit (range 12) 1217 | -9/Materials | Discovered new exit (range 15) 1582 | -9/Materials | Entered another Materials area 1582 | -8/Materials | Evolved 2 slots: Propulsion x1, Utility x1 1584 | -8/Materials | Discovered new exit (range 14) 2361 | -8/Materials | Discovered new exit (range 5) 2388 | -8/Materials | Entered Factory 2388 | -7/Factory | Evolved 2 slots: Power x1, Utility x1 2958 | -7/Factory | Discovered new exit (range 15) 3136 | -7/Factory | Build established: Gunner 3380 | -7/Factory | Entered another Factory area 3380 | -6/Factory | Evolved 2 slots: Utility x1, Weapon x1 3658 | -6/Factory | Build established: Tank 3937 | -6/Factory | Discovered new exit (range 8) 4105 | -6/Factory | Build established: Skirmisher 4172 | -6/Factory | Found Hvy. Insulated Plating 4486 | -6/Factory | Discovered new exit (range 4) 4740 | -6/Factory | Entered another Factory area 4740 | -5/Factory | Evolved 2 slots: Propulsion x1, Utility x1 6120 | -5/Factory | Discovered new exit (range 15) 6497 | -5/Factory | Cargo convoy interrupted 6538 | -5/Factory | System corruption reached 10% 6580 | -5/Factory | Destroyed 7 combat bots 6581 | -5/Factory | Lost 9 parts (1n4u4w) 6805 | -5/Factory | Build established: Gunner 7145 | -5/Factory | Lost 3 parts (2n1u) 7286 | -5/Factory | Discovered new exit (range 15) 7304 | -5/Factory | Entered Extension 7397 | -5/Extension | Crushed by falling debris 7407 | -5/Extension | Crushed by falling debris 7438 | -5/Extension | Lost 4 parts (1p3u) 7623 | -5/Extension | Core integrity fell below 50% 7686 | -5/Extension | Destroyed 8 combat bots 7766 | -5/Extension | Spotted B-75 Beast 7767 | -5/Extension | Rescued a captive Derelict 8244 | -5/Extension | Destroyed B-75 Beast 8271 | -5/Extension | Spotted B-75 Beast 8319 | -5/Extension | Destroyed B-75 Beast 8336 | -5/Extension | Lost 5 parts (1p4w) 8412 | -5/Extension | Core integrity fell below 20% 8448 | -5/Extension | Destroyed by S-27 Virus with Autogun Last Messages --------------- Acquired 59 matter. System corrupted: Matter fused (-5). Lyr. Medium Armor Plating destroyed. Penetrated by Slug. Gauss Rifle destroyed. Penetrated by Slug. Arm. Huge Wheel destroyed. Slug penetrates K-01 Serf. K-01 Serf destroyed. Penetrated by Slug. Slug penetrates T-07 Excavator. T-07 Excavator destroyed. Acquired 67 matter. Slug penetrates Wall. Penetrated by Slug. KE Penetrator destroyed. Coolant Injector destroyed. Penetrated by Slug. Phase Shifter destroyed. Penetrated by Slug. Map ----- +----------------------------------------------------+ | ?????????????????????????????????????????????????? | | ?????????????????????????????????????????????????? | | ?????????????????????????????????????????????????? | | ?????????????????????????????????????????????????? | | ?????????????????????????????????????????????????? | | ?????????????????????????????????????????????????? | | ?????????????????????????????????????????????????? | | ?????????????????????????????????????????????????? | | ?????????????????????????????????????????????????? | | ?????????????????????????????????????????????????? | | ?????????????????????????????????????????????????? | | ?????????????????????????????????????????????????? | | ?????????????????????????????????????????????????? | | ?????????????????????????????????????????????????? | | ?????????????????????????????????????????????????? | | ?????????????????????????????????????????????????? | | ?????????????????????????????????????????????????? | | ?????????????????????????????????????????????????? | | ?????????????????????????????????????????????????? | | ?????????????????????????????????????????????????? | | ?????????????????????????????????????????????????? | | ########################################?????????? | | ?????????? | | ????????? | | = g ????????? | | * [ hs! @ g ????????? | | !%==%! s=kk k RR????????? | | ########+#####+#######################???????????? | | ???????# #??? #????????????????????????????????? | | ???????# ?? #????????????????????????????????? | | ???????###?## #????????????????????????????????? | | ????????????#####????????????????????????????????? | | ?????????????????????????????????????????????????? | | ?????????????????????????????????????????????????? | | ?????????????????????????????????????????????????? | | | | | | | | | | | | | | | | | | | | | | | | | | | | | | | +----------------------------------------------------+ Best States ------------- Heat Dissipation 113 Coolant Potential 65 Energy Generation 37 Energy Capacity 600 Matter Stores 300 Matter Capacity 400 Sight Range 16 Robot Scan Range 16 Terrain Scan Density 10 ECM Strength 2 Corruption Containment 8 Armor Coverage 600 Resistance: KI 25 Resistance: EX 25 Resistance: EM 30 Propulsion Shielding 66 Weapon Shielding 33 Weapon Cycling 20 Phase Shifting 5 Evasion (%) 55 Targeting Accuracy 6 Target Analysis 6 Recoil Reduction 4 Offensive Hacking 10 Item Schematics ----------------- Phase Cannon | -6/Factory | Hacked Robot Schematics ------------------ None Fabricated ------------ Nothing Repaired ---------- Nothing Studied --------- Hvy. Plasma Cannon | -5/Factory | Hacked Alien Tech Used ----------------- None Achievements -------------- Ew, Corruption Fancy Inventory Hydra Jackpot Overkill Challenges ------------ None Game ------ Seed DiametricAssembledTracker Manual? 0 Play Time 02:23:03 Cumulative 19.2 hours Start 2026.09.22 @ 05:56:33 End 2026.09.22 @ 09:33:58 Sessions 3 Manual Loads 0 Difficulty Rogue Special Mode None Game No. 17 Rogue 17 Adventurer 0 Explorer 0 Win Type - Total 0 Types 0/0/0/0/0/0/0/0/0/0 Lore% 7 Gallery% 17 Achievement% 15 Wizard Run 0 Options --------- Layout 1 ASCII 0 Keyboard 0 Movement Mouse Keybinds 0 Fullscreen 1 Font 32/SmallcapsGlow Map View 50x35 Zoom Use 0% Tactical HUD 0 Map Filters NONE Filters NONE Steam 1 RUN: 4efa2bea-2364-49eb-a108-5d44aeafb955